[Event "*** Titled Tuesday Blitz"]
[Site "Chess.com"]
[Date "2020.11.03"]
[Round "10"]
[White "BogdanDeac"]
[Black "giantslayer83"]
[Result "1-0"]
[WhiteElo "2874"]
[BlackElo "2711"]
[TimeControl "180+1"]
[EndTime "11:58:15 PST"]
[Termination "BogdanDeac won by resignation"]

1. Nf3 {[%clk 0:03:00.9]} 1... d5 {[%clk 0:02:59.1]} 2. d4 {[%clk 0:03:00.8]}
2... Nf6 {[%clk 0:02:58.9]} 3. c4 {[%clk 0:03:01.2]} 3... e6 {[%clk 0:02:59.3]}
4. Nc3 {[%clk 0:03:01.1]} 4... Bb4 {[%clk 0:02:59.1]} 5. Bg5 {[%clk 0:03:00]}
5... h6 {[%clk 0:02:58.6]} 6. Bxf6 {[%clk 0:03:00.3]} 6... Qxf6 {[%clk
0:02:59.5]} 7. Qa4+ {[%clk 0:03:00.8]} 7... Nc6 {[%clk 0:02:59.3]} 8. e3 {[%clk
0:03:01.4]} 8... O-O {[%clk 0:02:59.4]} 9. Rd1 {[%clk 0:03:01.9]} 9... a6 {[%clk
0:02:57.8]} 10. Qb3 {[%clk 0:02:56.6]} 10... dxc4 {[%clk 0:02:56.2]} 11. Bxc4
{[%clk 0:02:52.4]} 11... Qe7 {[%clk 0:02:56.5]} 12. Bd3 {[%clk 0:02:45.4]} 12...
Bd6 {[%clk 0:02:10.9]} 13. Be4 {[%clk 0:02:33.8]} 13... Bd7 {[%clk 0:01:56.8]}
14. O-O {[%clk 0:02:30.4]} 14... Na5 {[%clk 0:01:53]} 15. Qc2 {[%clk 0:02:20.6]}
15... c5 {[%clk 0:01:50]} 16. Ne5 {[%clk 0:01:52]} 16... Bxe5 {[%clk 0:01:39.3]}
17. dxe5 {[%clk 0:01:50.6]} 17... Bc6 {[%clk 0:01:39.9]} 18. Rd6 {[%clk
0:00:49.2]} 18... Nc4 {[%clk 0:01:33.8]} 19. Bxc6 {[%clk 0:00:42.4]} 19... bxc6
{[%clk 0:01:30.1]} 20. Ne4 {[%clk 0:00:41.1]} 20... Nxd6 {[%clk 0:01:29.3]} 21.
exd6 {[%clk 0:00:40.5]} 21... Qh4 {[%clk 0:01:27.2]} 22. Nxc5 {[%clk 0:00:33.3]}
22... a5 {[%clk 0:01:22.5]} 23. Rd1 {[%clk 0:00:31.4]} 23... Rab8 {[%clk
0:01:21.6]} 24. Nd7 {[%clk 0:00:27.6]} 24... Rfd8 {[%clk 0:01:01.1]} 25. Nxb8
{[%clk 0:00:25.2]} 25... Rxb8 {[%clk 0:01:02]} 26. d7 {[%clk 0:00:21.4]} 1-0

[Event "*** Titled Tuesday Blitz"]
[Site "Chess.com"]
[Date "2020.11.03"]
[Round "10"]
[White "natelleka"]
[Black "UB_TheQueen"]
[Result "1-0"]
[WhiteElo "2192"]
[BlackElo "2059"]
[TimeControl "180+1"]
[EndTime "11:58:17 PST"]
[Termination "natelleka won on time"]

1. e4 {[%clk 0:03:00.9]} 1... c5 {[%clk 0:02:59.2]} 2. Nf3 {[%clk 0:03:00.2]}
2... d6 {[%clk 0:02:59.6]} 3. d4 {[%clk 0:03:00.7]} 3... cxd4 {[%clk 0:03:00.5]}
4. Nxd4 {[%clk 0:03:00.8]} 4... Nf6 {[%clk 0:03:01]} 5. Nc3 {[%clk 0:03:01.3]}
5... g6 {[%clk 0:03:01.6]} 6. Be2 {[%clk 0:03:00.9]} 6... Bg7 {[%clk 0:03:02.2]}
7. Bg5 {[%clk 0:03:01.1]} 7... O-O {[%clk 0:03:02.9]} 8. O-O {[%clk 0:03:01.5]}
8... Nc6 {[%clk 0:03:03.3]} 9. Nb3 {[%clk 0:03:00.9]} 9... Bd7 {[%clk
0:03:01.3]} 10. Re1 {[%clk 0:03:00.6]} 10... Rc8 {[%clk 0:03:01.3]} 11. Bf1
{[%clk 0:03:00.6]} 11... a6 {[%clk 0:03:01.6]} 12. Nd5 {[%clk 0:02:57.1]} 12...
Be6 {[%clk 0:02:09.4]} 13. Nxf6+ {[%clk 0:02:54.3]} 13... exf6 {[%clk
0:02:09.4]} 14. Bf4 {[%clk 0:02:50.5]} 14... Ne5 {[%clk 0:02:09.4]} 15. Qd2
{[%clk 0:02:44.8]} 15... Qc7 {[%clk 0:02:06.4]} 16. Nd4 {[%clk 0:02:41]} 16...
Rfd8 {[%clk 0:02:04]} 17. b3 {[%clk 0:02:37.5]} 17... b5 {[%clk 0:01:46.7]} 18.
a4 {[%clk 0:02:35.8]} 18... g5 {[%clk 0:01:23.6]} 19. Bg3 {[%clk 0:02:30.5]}
19... h5 {[%clk 0:01:23.1]} 20. h4 {[%clk 0:02:24.7]} 20... gxh4 {[%clk
0:01:08.7]} 21. Bxh4 {[%clk 0:02:22.6]} 21... bxa4 {[%clk 0:01:09.2]} 22. Rxa4
{[%clk 0:02:21.2]} 22... Ng4 {[%clk 0:00:54.1]} 23. Rxa6 {[%clk 0:02:08.4]}
23... Qc5 {[%clk 0:00:43.5]} 24. Ra5 {[%clk 0:01:58.1]} 24... Qb6 {[%clk
0:00:42.4]} 25. Rxh5 {[%clk 0:01:54]} 25... Rc5 {[%clk 0:00:17.3]} 26. Nxe6
{[%clk 0:01:37.7]} 26... fxe6 {[%clk 0:00:13.8]} 27. Rxc5 {[%clk 0:01:37.2]}
27... dxc5 {[%clk 0:00:14.1]} 28. Qf4 {[%clk 0:01:35.4]} 28... f5 {[%clk
0:00:04]} 29. exf5 {[%clk 0:01:31.2]} 29... Rd4 {[%clk 0:00:03.8]} 30. Qg5
{[%clk 0:01:21.1]} 1-0

[Event "*** Titled Tuesday Blitz"]
[Site "Chess.com"]
[Date "2020.11.03"]
[Round "10"]
[White "fyall777"]
[Black "AmirBagheri78"]
[Result "1/2-1/2"]
[WhiteElo "2463"]
[BlackElo "2576"]
[TimeControl "180+1"]
[EndTime "11:58:18 PST"]
[Termination "Game drawn by repetition"]

1. e4 {[%clk 0:03:00.9]} 1... c6 {[%clk 0:02:35.1]} 2. Nc3 {[%clk 0:02:54.2]}
2... d5 {[%clk 0:02:35.1]} 3. Qf3 {[%clk 0:02:54.3]} 3... dxe4 {[%clk
0:02:34.7]} 4. Nxe4 {[%clk 0:02:53.9]} 4... Nf6 {[%clk 0:02:34.9]} 5. Bc4 {[%clk
0:02:52.6]} 5... Qd4 {[%clk 0:02:28.1]} 6. d3 {[%clk 0:02:47.4]} 6... Nbd7
{[%clk 0:02:26.2]} 7. Ne2 {[%clk 0:02:45.4]} 7... Qe5 {[%clk 0:02:20.2]} 8. O-O
{[%clk 0:02:34.3]} 8... Qh5 {[%clk 0:02:13.2]} 9. Qxh5 {[%clk 0:02:12.8]} 9...
Nxh5 {[%clk 0:02:12.5]} 10. f4 {[%clk 0:02:13]} 10... Nb6 {[%clk 0:02:10.1]} 11.
Bb3 {[%clk 0:02:12.3]} 11... e6 {[%clk 0:02:04.9]} 12. g4 {[%clk 0:01:43.5]}
12... Nf6 {[%clk 0:02:03.5]} 13. Nxf6+ {[%clk 0:01:43.7]} 13... gxf6 {[%clk
0:02:02.7]} 14. Ng3 {[%clk 0:01:43.1]} 14... Rg8 {[%clk 0:02:01.3]} 15. h3
{[%clk 0:01:42.8]} 15... f5 {[%clk 0:01:58.1]} 16. g5 {[%clk 0:01:42.3]} 16...
Bg7 {[%clk 0:01:51.7]} 17. c3 {[%clk 0:01:38.4]} 17... c5 {[%clk 0:01:47.4]} 18.
Be3 {[%clk 0:01:36.4]} 18... Nd7 {[%clk 0:01:47]} 19. Rae1 {[%clk 0:01:34.6]}
19... Kd8 {[%clk 0:01:42.1]} 20. Kf2 {[%clk 0:01:25]} 20... b6 {[%clk
0:01:41.6]} 21. h4 {[%clk 0:01:20.9]} 21... Ba6 {[%clk 0:01:41.3]} 22. Bc4
{[%clk 0:01:16]} 22... Bxc4 {[%clk 0:01:39.9]} 23. dxc4 {[%clk 0:01:16]} 23...
Kc7 {[%clk 0:01:36.5]} 24. Rd1 {[%clk 0:01:15.7]} 24... Rad8 {[%clk 0:01:35.4]}
25. h5 {[%clk 0:01:15.1]} 25... Nb8 {[%clk 0:01:34.1]} 26. h6 {[%clk 0:01:12.8]}
26... Rxd1 {[%clk 0:01:27.9]} 27. Rxd1 {[%clk 0:01:12.2]} 27... Bf8 {[%clk
0:01:28.1]} 28. Nh5 {[%clk 0:01:10.5]} 28... Be7 {[%clk 0:01:28.4]} 29. b4
{[%clk 0:01:06.3]} 29... Rd8 {[%clk 0:01:25.1]} 30. Rxd8 {[%clk 0:01:01.8]}
30... Kxd8 {[%clk 0:01:24.5]} 31. bxc5 {[%clk 0:00:56.2]} 31... bxc5 {[%clk
0:01:24.6]} 32. Ke2 {[%clk 0:00:56.1]} 32... Nd7 {[%clk 0:01:24.4]} 33. Kd3
{[%clk 0:00:55.4]} 33... Kc7 {[%clk 0:01:24]} 34. Kc2 {[%clk 0:00:51.6]} 34...
Kc6 {[%clk 0:01:24]} 35. Kb3 {[%clk 0:00:51.5]} 35... Bd6 {[%clk 0:01:21.4]} 36.
Kc2 {[%clk 0:00:46.3]} 36... Be7 {[%clk 0:01:21]} 37. Kd3 {[%clk 0:00:45.9]}
37... Nf8 {[%clk 0:01:19.8]} 38. Kc2 {[%clk 0:00:42.9]} 38... Ng6 {[%clk
0:01:19]} 39. Kb3 {[%clk 0:00:42.6]} 39... Nf8 {[%clk 0:01:15.5]} 40. Ka4 {[%clk
0:00:42.2]} 40... Kb6 {[%clk 0:01:15.7]} 41. Kb3 {[%clk 0:00:37.4]} 41... Nd7
{[%clk 0:01:15.6]} 42. Kc2 {[%clk 0:00:37.5]} 42... Kc6 {[%clk 0:01:15.3]}
1/2-1/2

[Event "*** Titled Tuesday Blitz"]
[Site "Chess.com"]
[Date "2020.11.03"]
[Round "10"]
[White "Lady_Nika"]
[Black "dosto07"]
[Result "0-1"]
[WhiteElo "2422"]
[BlackElo "2363"]
[TimeControl "180+1"]
[EndTime "11:58:18 PST"]
[Termination "dosto07 won by checkmate"]

1. d4 {[%clk 0:03:00.9]} 1... d5 {[%clk 0:02:57]} 2. e3 {[%clk 0:02:56.4]} 2...
Nf6 {[%clk 0:02:55.5]} 3. f4 {[%clk 0:02:56.6]} 3... g6 {[%clk 0:02:52.4]} 4.
Nf3 {[%clk 0:02:55.3]} 4... Bg7 {[%clk 0:02:52.9]} 5. Bd3 {[%clk 0:02:55]} 5...
O-O {[%clk 0:02:53.1]} 6. Nbd2 {[%clk 0:02:55.5]} 6... c5 {[%clk 0:02:48.9]} 7.
c3 {[%clk 0:02:55.7]} 7... b6 {[%clk 0:02:48.8]} 8. Qe2 {[%clk 0:02:54.9]} 8...
a5 {[%clk 0:02:46.8]} 9. O-O {[%clk 0:02:51]} 9... Ba6 {[%clk 0:02:46.4]} 10.
Ne5 {[%clk 0:02:51.4]} 10... Ne4 {[%clk 0:02:28.2]} 11. Nxe4 {[%clk 0:02:44.5]}
11... dxe4 {[%clk 0:02:27.2]} 12. Bxa6 {[%clk 0:02:41]} 12... Nxa6 {[%clk
0:02:15.4]} 13. b3 {[%clk 0:02:34.4]} 13... cxd4 {[%clk 0:02:13.2]} 14. exd4
{[%clk 0:02:34.3]} 14... Qc7 {[%clk 0:02:07.1]} 15. Bb2 {[%clk 0:02:30.8]} 15...
f6 {[%clk 0:02:04.3]} 16. Ng4 {[%clk 0:02:19.6]} 16... f5 {[%clk 0:02:01.8]} 17.
Ne5 {[%clk 0:02:17.7]} 17... Bxe5 {[%clk 0:01:50]} 18. fxe5 {[%clk 0:02:17.5]}
18... e6 {[%clk 0:01:45.4]} 19. Qe3 {[%clk 0:02:11.4]} 19... b5 {[%clk
0:01:39.8]} 20. a3 {[%clk 0:02:10]} 20... a4 {[%clk 0:01:39]} 21. c4 {[%clk
0:01:47.6]} 21... bxc4 {[%clk 0:01:33.5]} 22. b4 {[%clk 0:01:47.4]} 22... Rac8
{[%clk 0:01:29.1]} 23. Rac1 {[%clk 0:01:46.7]} 23... Qd7 {[%clk 0:01:28.8]} 24.
Rc2 {[%clk 0:01:38.4]} 24... Nc7 {[%clk 0:01:27.2]} 25. Rfc1 {[%clk 0:01:18.1]}
25... Nd5 {[%clk 0:01:26.9]} 26. Qg3 {[%clk 0:01:06.9]} 26... f4 {[%clk
0:01:13.9]} 27. Qh3 {[%clk 0:01:01.5]} 27... Ne3 {[%clk 0:01:08.7]} 28. Re2
{[%clk 0:01:00.9]} 28... c3 {[%clk 0:00:58.3]} 29. Rxc3 {[%clk 0:00:58.3]} 29...
Qxd4 {[%clk 0:00:50.1]} 30. Qxe6+ {[%clk 0:00:56.6]} 30... Kh8 {[%clk
0:00:48.7]} 31. Qxc8 {[%clk 0:00:42.8]} 31... Qd1+ {[%clk 0:00:46]} 32. Kf2
{[%clk 0:00:41.1]} 32... Qf1# {[%clk 0:00:45.1]} 0-1

[Event "*** Titled Tuesday Blitz"]
[Site "Chess.com"]
[Date "2020.11.03"]
[Round "10"]
[White "Meri-Arabidze"]
[Black "Susal_De_Silva"]
[Result "0-1"]
[WhiteElo "2641"]
[BlackElo "2533"]
[TimeControl "180+1"]
[EndTime "11:58:19 PST"]
[Termination "Susal_De_Silva won by resignation"]

1. Nf3 {[%clk 0:03:00.9]} 1... Nf6 {[%clk 0:02:59.6]} 2. b3 {[%clk 0:03:01.8]}
2... e6 {[%clk 0:02:59]} 3. Bb2 {[%clk 0:03:02.7]} 3... b6 {[%clk 0:02:58.2]} 4.
e3 {[%clk 0:03:03.3]} 4... Bb7 {[%clk 0:02:58.8]} 5. c4 {[%clk 0:03:03.8]} 5...
d5 {[%clk 0:02:56.9]} 6. Be2 {[%clk 0:03:03.3]} 6... Be7 {[%clk 0:02:56]} 7. O-O
{[%clk 0:03:03.3]} 7... O-O {[%clk 0:02:56.4]} 8. d3 {[%clk 0:03:03.5]} 8... c5
{[%clk 0:02:56.4]} 9. Nbd2 {[%clk 0:03:03.5]} 9... Nc6 {[%clk 0:02:56.5]} 10.
Rc1 {[%clk 0:03:02.9]} 10... d4 {[%clk 0:02:54.4]} 11. exd4 {[%clk 0:03:02.5]}
11... cxd4 {[%clk 0:02:52.7]} 12. a3 {[%clk 0:03:02.6]} 12... a5 {[%clk
0:02:52.2]} 13. Re1 {[%clk 0:03:03.1]} 13... e5 {[%clk 0:02:51.3]} 14. Bf1
{[%clk 0:03:03.4]} 14... Nd7 {[%clk 0:02:50.7]} 15. g3 {[%clk 0:03:02.2]} 15...
f5 {[%clk 0:02:47.5]} 16. Bg2 {[%clk 0:03:00]} 16... Bf6 {[%clk 0:02:47.4]} 17.
b4 {[%clk 0:02:46.4]} 17... axb4 {[%clk 0:02:44.6]} 18. axb4 {[%clk 0:02:47.3]}
18... Nxb4 {[%clk 0:02:35.7]} 19. Qb3 {[%clk 0:02:47.8]} 19... Na6 {[%clk
0:02:28.6]} 20. c5+ {[%clk 0:02:46.8]} 20... Kh8 {[%clk 0:02:25.7]} 21. c6
{[%clk 0:02:42.4]} 21... Nac5 {[%clk 0:02:20]} 22. Qd5 {[%clk 0:02:24.8]} 22...
Bxc6 {[%clk 0:02:01.7]} 23. Qxc6 {[%clk 0:02:25.7]} 23... Nxd3 {[%clk
0:02:02.2]} 24. Nxe5 {[%clk 0:02:07.7]} 24... N7xe5 {[%clk 0:01:25.1]} 25. Qxa8
{[%clk 0:02:06.5]} 25... Qxa8 {[%clk 0:01:14]} 26. Bxa8 {[%clk 0:02:07.4]} 26...
Nxc1 {[%clk 0:01:08.2]} 27. Bxd4 {[%clk 0:01:42.7]} 27... Ned3 {[%clk
0:00:54.1]} 28. Rxc1 {[%clk 0:00:52.4]} 28... Nxc1 {[%clk 0:00:51.7]} 29. Bxf6
{[%clk 0:00:53.3]} 29... Rxf6 {[%clk 0:00:43.7]} 30. Kg2 {[%clk 0:00:53.1]}
30... b5 {[%clk 0:00:43]} 31. Bd5 {[%clk 0:00:52.4]} 31... Rd6 {[%clk
0:00:40.8]} 0-1

[Event "*** Titled Tuesday Blitz"]
[Site "Chess.com"]
[Date "2020.11.03"]
[Round "10"]
[White "Sofiia_Hryzlova"]
[Black "xberli"]
[Result "0-1"]
[WhiteElo "2324"]
[BlackElo "2541"]
[TimeControl "180+1"]
[EndTime "11:58:24 PST"]
[Termination "xberli won by resignation"]

1. c4 {[%clk 0:03:00.9]} 1... Nf6 {[%clk 0:02:59.5]} 2. Nc3 {[%clk 0:02:58.9]}
2... g6 {[%clk 0:02:59.2]} 3. e4 {[%clk 0:02:58.8]} 3... e5 {[%clk 0:02:59]} 4.
g3 {[%clk 0:02:48.8]} 4... Bg7 {[%clk 0:02:58.8]} 5. Bg2 {[%clk 0:02:49.1]} 5...
O-O {[%clk 0:02:59.7]} 6. Nge2 {[%clk 0:02:49.5]} 6... a6 {[%clk 0:02:52.7]} 7.
a4 {[%clk 0:02:47.6]} 7... c5 {[%clk 0:02:44.3]} 8. O-O {[%clk 0:02:42.3]} 8...
Nc6 {[%clk 0:02:45.2]} 9. d3 {[%clk 0:02:36.9]} 9... Ne8 {[%clk 0:02:44.2]} 10.
Nd5 {[%clk 0:02:34.8]} 10... Rb8 {[%clk 0:02:38.2]} 11. Bd2 {[%clk 0:02:28.4]}
11... d6 {[%clk 0:02:28.9]} 12. b4 {[%clk 0:02:23.9]} 12... Nc7 {[%clk
0:02:27.7]} 13. b5 {[%clk 0:02:21.3]} 13... Nxd5 {[%clk 0:02:16.3]} 14. exd5
{[%clk 0:02:13.5]} 14... Nd4 {[%clk 0:01:58.2]} 15. Nxd4 {[%clk 0:02:05.5]}
15... exd4 {[%clk 0:01:43.4]} 16. f4 {[%clk 0:02:01.2]} 16... Bf5 {[%clk
0:01:41.9]} 17. Qf3 {[%clk 0:01:59.2]} 17... Qd7 {[%clk 0:01:39.8]} 18. Rae1
{[%clk 0:01:46.7]} 18... Ra8 {[%clk 0:01:32.5]} 19. Ra1 {[%clk 0:01:43.7]} 19...
Rfe8 {[%clk 0:01:30.2]} 20. b6 {[%clk 0:01:33]} 20... Bg4 {[%clk 0:01:28.9]} 21.
Qf2 {[%clk 0:01:07.1]} 21... Re2 {[%clk 0:01:27.5]} 22. a5 {[%clk 0:01:00.7]}
22... Rxf2 {[%clk 0:01:23.9]} 23. Kxf2 {[%clk 0:01:01.6]} 23... Bf5 {[%clk
0:01:18]} 24. Be4 {[%clk 0:01:00]} 24... Bxe4 {[%clk 0:01:14.5]} 25. dxe4 {[%clk
0:01:00]} 25... Qh3 {[%clk 0:01:14.5]} 26. Kg1 {[%clk 0:00:58.7]} 26... Re8
{[%clk 0:01:10.8]} 27. Rfe1 {[%clk 0:00:58.1]} 27... d3 {[%clk 0:01:09.9]} 28.
Ra3 {[%clk 0:00:57.3]} 28... Bd4+ {[%clk 0:01:09]} 29. Be3 {[%clk 0:00:57.3]}
29... Rxe4 {[%clk 0:01:07.5]} 30. Rxd3 {[%clk 0:00:57.7]} 30... Bxe3+ {[%clk
0:00:59.4]} 31. Rdxe3 {[%clk 0:00:56.5]} 31... Rxe3 {[%clk 0:00:53.4]} 32. Rxe3
{[%clk 0:00:57.4]} 32... Kf8 {[%clk 0:00:53.2]} 33. Rf3 {[%clk 0:00:42.1]} 33...
Qf5 {[%clk 0:00:50.6]} 34. Kg2 {[%clk 0:00:39.6]} 34... Qc2+ {[%clk 0:00:48.8]}
35. Kh3 {[%clk 0:00:39.5]} 35... Qxc4 {[%clk 0:00:48.6]} 36. g4 {[%clk
0:00:40.4]} 36... Qxd5 {[%clk 0:00:48.4]} 0-1

[Event "*** Titled Tuesday Blitz"]
[Site "Chess.com"]
[Date "2020.11.03"]
[Round "10"]
[White "Vanina1989"]
[Black "Tashik"]
[Result "1-0"]
[WhiteElo "2627"]
[BlackElo "2492"]
[TimeControl "180+1"]
[EndTime "11:58:29 PST"]
[Termination "Vanina1989 won by resignation"]

1. d4 {[%clk 0:03:00.9]} 1... Nf6 {[%clk 0:02:59.7]} 2. c4 {[%clk 0:03:01.3]}
2... c5 {[%clk 0:03:00.2]} 3. d5 {[%clk 0:03:01.4]} 3... b5 {[%clk 0:03:00.8]}
4. a4 {[%clk 0:03:01.7]} 4... bxc4 {[%clk 0:02:58.2]} 5. Nc3 {[%clk 0:03:00.6]}
5... d6 {[%clk 0:02:56.9]} 6. e4 {[%clk 0:03:00.9]} 6... g6 {[%clk 0:02:57.1]}
7. Bxc4 {[%clk 0:03:00]} 7... Bg7 {[%clk 0:02:57.6]} 8. Nf3 {[%clk 0:03:00.4]}
8... O-O {[%clk 0:02:58]} 9. O-O {[%clk 0:03:00.7]} 9... Nbd7 {[%clk 0:02:58]}
10. Qe2 {[%clk 0:03:00.8]} 10... Nb6 {[%clk 0:02:45]} 11. Bb5 {[%clk 0:02:59.4]}
11... a5 {[%clk 0:02:36.1]} 12. h3 {[%clk 0:02:58.7]} 12... Bd7 {[%clk
0:02:14.2]} 13. Bg5 {[%clk 0:02:55.1]} 13... Bxb5 {[%clk 0:02:10.6]} 14. Nxb5
{[%clk 0:02:55.4]} 14... Nfd7 {[%clk 0:02:08]} 15. Ra2 {[%clk 0:02:40]} 15... h6
{[%clk 0:02:03.3]} 16. Bh4 {[%clk 0:02:39.4]} 16... g5 {[%clk 0:01:55.2]} 17.
Bg3 {[%clk 0:02:39.1]} 17... c4 {[%clk 0:01:55.7]} 18. Nfd4 {[%clk 0:02:37.6]}
18... Nc5 {[%clk 0:01:52.5]} 19. Nc6 {[%clk 0:02:37.1]} 19... Qd7 {[%clk
0:01:50.2]} 20. f4 {[%clk 0:02:36.8]} 20... f5 {[%clk 0:01:25.9]} 21. Bf2 {[%clk
0:02:16]} 21... Nbxa4 {[%clk 0:00:49.3]} 22. fxg5 {[%clk 0:02:10.9]} 22... Rae8
{[%clk 0:00:49.9]} 23. gxh6 {[%clk 0:02:10.4]} 23... Bxh6 {[%clk 0:00:49.5]} 24.
e5 {[%clk 0:02:01.6]} 24... dxe5 {[%clk 0:00:41.8]} 25. Qxc4 {[%clk 0:02:01.7]}
25... Ne4 {[%clk 0:00:30.2]} 26. Rxa4 {[%clk 0:02:00.8]} 26... Nxf2 {[%clk
0:00:30.2]} 27. Kxf2 {[%clk 0:01:59.6]} 27... e6 {[%clk 0:00:26.3]} 28. d6
{[%clk 0:01:52.4]} 28... Bg5 {[%clk 0:00:20.6]} 29. Kg1 {[%clk 0:01:51.8]} 29...
Rc8 {[%clk 0:00:19.8]} 30. Nba7 {[%clk 0:01:16.9]} 30... Be3+ {[%clk 0:00:18.8]}
31. Kh1 {[%clk 0:01:17.3]} 31... Bxa7 {[%clk 0:00:19.4]} 32. Ne7+ {[%clk
0:01:16.8]} 32... Kg7 {[%clk 0:00:19.6]} 33. Qh4 {[%clk 0:01:13.5]} 33... Be3
{[%clk 0:00:17.4]} 34. Qg3+ {[%clk 0:01:11.6]} 34... Kh7 {[%clk 0:00:15]} 35.
Qg6+ {[%clk 0:01:11.4]} 35... Kh8 {[%clk 0:00:15]} 36. Rh4+ {[%clk 0:01:11.5]}
1-0

[Event "*** Titled Tuesday Blitz"]
[Site "Chess.com"]
[Date "2020.11.03"]
[Round "10"]
[White "FMJoseHerrera"]
[Black "Region_07"]
[Result "1-0"]
[WhiteElo "2581"]
[BlackElo "2453"]
[TimeControl "180+1"]
[EndTime "11:58:32 PST"]
[Termination "FMJoseHerrera won on time"]

1. e4 {[%clk 0:02:59.4]} 1... Nc6 {[%clk 0:02:58.6]} 2. Nf3 {[%clk 0:02:53.2]}
2... d6 {[%clk 0:02:57.4]} 3. d4 {[%clk 0:02:50.2]} 3... g6 {[%clk 0:02:54.6]}
4. c3 {[%clk 0:02:49.3]} 4... Bg7 {[%clk 0:02:54.2]} 5. h4 {[%clk 0:02:49.3]}
5... h5 {[%clk 0:02:52.7]} 6. Ng5 {[%clk 0:02:49]} 6... Nh6 {[%clk 0:02:44.2]}
7. Be2 {[%clk 0:02:47.6]} 7... e6 {[%clk 0:02:29.4]} 8. O-O {[%clk 0:02:46.5]}
8... O-O {[%clk 0:02:22.5]} 9. f4 {[%clk 0:02:42]} 9... e5 {[%clk 0:02:15]} 10.
f5 {[%clk 0:02:39.3]} 10... exd4 {[%clk 0:02:07.4]} 11. fxg6 {[%clk 0:02:20.4]}
11... fxg6 {[%clk 0:02:06.9]} 12. Bf4 {[%clk 0:01:48.3]} 12... Ng4 {[%clk
0:01:52.3]} 13. Bc4+ {[%clk 0:01:43.8]} 13... Kh8 {[%clk 0:01:49.2]} 14. Bf7
{[%clk 0:01:41.1]} 14... dxc3 {[%clk 0:00:45.9]} 15. Nxc3 {[%clk 0:01:42]} 15...
Bd4+ {[%clk 0:00:43.3]} 16. Kh1 {[%clk 0:01:39.1]} 16... Kg7 {[%clk 0:00:42.3]}
17. Be6 {[%clk 0:01:23.4]} 17... Rf6 {[%clk 0:00:37.9]} 18. Bxc8 {[%clk
0:01:20.9]} 18... Rxc8 {[%clk 0:00:36.6]} 19. Nd5 {[%clk 0:01:20.6]} 19... Qd7
{[%clk 0:00:21.4]} 20. Nxf6 {[%clk 0:01:20.1]} 20... Bxf6 {[%clk 0:00:20.5]} 21.
Qd5 {[%clk 0:01:19.1]} 21... Re8 {[%clk 0:00:19.4]} 22. Rae1 {[%clk 0:01:07.5]}
22... Nge5 {[%clk 0:00:09.8]} 23. Bc1 {[%clk 0:00:59.9]} 23... Qg4 {[%clk
0:00:09.5]} 24. Rf4 {[%clk 0:00:59.9]} 24... Qg3 {[%clk 0:00:09.2]} 25. Ref1
{[%clk 0:00:58.9]} 25... Ng4 {[%clk 0:00:08.3]} 26. Qf7+ {[%clk 0:00:58.3]} 1-0

[Event "*** Titled Tuesday Blitz"]
[Site "Chess.com"]
[Date "2020.11.03"]
[Round "10"]
[White "Everyfishknows"]
[Black "Eloist"]
[Result "1-0"]
[WhiteElo "2401"]
[BlackElo "2266"]
[TimeControl "180+1"]
[EndTime "11:58:36 PST"]
[Termination "Everyfishknows won by resignation"]

1. Nf3 {[%clk 0:02:57.8]} 1... Nf6 {[%clk 0:02:56.7]} 2. c4 {[%clk 0:02:57.3]}
2... e6 {[%clk 0:02:55]} 3. g3 {[%clk 0:02:57]} 3... b6 {[%clk 0:02:55]} 4. Bg2
{[%clk 0:02:57.1]} 4... Bb7 {[%clk 0:02:55.1]} 5. O-O {[%clk 0:02:58]} 5... Be7
{[%clk 0:02:55.2]} 6. b3 {[%clk 0:02:57.8]} 6... O-O {[%clk 0:02:55]} 7. Bb2
{[%clk 0:02:58]} 7... c5 {[%clk 0:02:53.7]} 8. e3 {[%clk 0:02:58.1]} 8... d5
{[%clk 0:02:53]} 9. Nc3 {[%clk 0:02:57.8]} 9... dxc4 {[%clk 0:02:24.5]} 10. bxc4
{[%clk 0:02:54.4]} 10... Nc6 {[%clk 0:02:21.9]} 11. Qe2 {[%clk 0:02:54.1]} 11...
a6 {[%clk 0:02:12.3]} 12. a4 {[%clk 0:02:51.9]} 12... Qc7 {[%clk 0:02:11]} 13.
Rad1 {[%clk 0:02:51.4]} 13... Rfd8 {[%clk 0:02:07.4]} 14. Ne1 {[%clk 0:02:48]}
14... Nb4 {[%clk 0:01:50.3]} 15. f4 {[%clk 0:02:45.4]} 15... Bxg2 {[%clk
0:01:46.2]} 16. Qxg2 {[%clk 0:02:42.9]} 16... Qc6 {[%clk 0:01:40.2]} 17. Qxc6
{[%clk 0:02:41.6]} 17... Nxc6 {[%clk 0:01:39.3]} 18. Nf3 {[%clk 0:02:40.8]}
18... Ne8 {[%clk 0:01:31.9]} 19. Kf2 {[%clk 0:02:40]} 19... Nd6 {[%clk
0:01:29.1]} 20. d3 {[%clk 0:02:39.9]} 20... h5 {[%clk 0:01:25.1]} 21. Ke2 {[%clk
0:02:36]} 21... Rab8 {[%clk 0:01:24]} 22. Ba3 {[%clk 0:02:32.1]} 22... Nf5
{[%clk 0:01:20.2]} 23. Rb1 {[%clk 0:02:24.2]} 23... Nb4 {[%clk 0:01:17.8]} 24.
Bxb4 {[%clk 0:02:12.9]} 24... cxb4 {[%clk 0:01:17.3]} 25. Ne4 {[%clk 0:02:12.5]}
25... Nd6 {[%clk 0:00:59.7]} 26. Ned2 {[%clk 0:01:57.6]} 26... Nb7 {[%clk
0:00:53.9]} 27. Nb3 {[%clk 0:01:56.9]} 27... Nc5 {[%clk 0:00:50.2]} 28. Nxc5
{[%clk 0:01:52.9]} 28... bxc5 {[%clk 0:00:51.1]} 29. Nd2 {[%clk 0:01:52.4]}
29... Rd7 {[%clk 0:00:42.7]} 30. Nb3 {[%clk 0:01:51.1]} 30... Rbd8 {[%clk
0:00:40.2]} 31. Rbd1 {[%clk 0:01:50.8]} 31... f5 {[%clk 0:00:39]} 32. e4 {[%clk
0:01:43]} 32... fxe4 {[%clk 0:00:34.5]} 33. dxe4 {[%clk 0:01:42.7]} 33... Rxd1
{[%clk 0:00:32.8]} 34. Rxd1 {[%clk 0:01:42.6]} 34... Rxd1 {[%clk 0:00:32.4]} 35.
Kxd1 {[%clk 0:01:43.5]} 35... g5 {[%clk 0:00:31]} 36. fxg5 {[%clk 0:01:40]}
36... Bxg5 {[%clk 0:00:18.1]} 37. Nxc5 {[%clk 0:01:39.7]} 37... Kf7 {[%clk
0:00:15.8]} 38. Nxa6 {[%clk 0:01:38.3]} 38... b3 {[%clk 0:00:16]} 39. Nc5 {[%clk
0:01:37.2]} 39... Kf6 {[%clk 0:00:13.6]} 40. Nxb3 {[%clk 0:01:34.1]} 40... Ke5
{[%clk 0:00:13.3]} 41. a5 {[%clk 0:01:28.3]} 41... Kxe4 {[%clk 0:00:12.5]} 42.
a6 {[%clk 0:01:28.6]} 42... Be3 {[%clk 0:00:10]} 43. c5 {[%clk 0:01:29]} 1-0